Cogmind - Beta 13 @@@ ROGUE MODE // 2024.04.08 @ 23:31:19 Player: Olafz Result: Destroyed self with Rocket Launcher Performance ------------- Evolutions (0) 0 Regions Visited (4) 800 Robots Destroyed (21) 105 Value Destroyed (576) 576 Prototype IDs (23) 460 Alien Tech Used (0) 0 Bonus (300) 300 TOTAL SCORE: 2241 Bonus ------- Aligned with FarCom 300 Cogmind --------- Core Integrity 0/250 Matter 224/300 Energy 124/125 System Corruption 0% Temperature Cool (53) Movement Treading (160) Location -9/Mines Parts ------- > --- POWER (1) -------- Light Ion Engine > --- PROPULSION (2) --- Light Treads Light Treads > --- UTILITY (2) ------ Large Storage Unit Signal Interpreter > --- WEAPON (2) ------- Light Assault Rifle Rocket Launcher > --- INVENTORY (15) --- Small Storage Unit Cloak of Protection Core Shielding Utility Shielding Peak State ------------ > --- POWER ------------ Improved Ion Engine > --- PROPULSION ------- Light Treads Light Treads > --- UTILITY ---------- Large Storage Unit Signal Interpreter > --- WEAPON ----------- Light Assault Rifle Rocket Launcher > --- INVENTORY -------- Ion Engine Light Ion Engine Light Treads Small Storage Unit Cloak of Protection Core Shielding Utility Shielding [Rating: 10] Favorites ----------- Power Improved Ion Engine Engine Improved Ion Engine Propulsion Light Treads Treads Light Treads Utility Signal Interpreter Storage Large Storage Unit Processor Signal Interpreter Weapon Rocket Launcher Energy Gun EM Pulse Gun Ballistic Gun Light Assault Rifle Launcher Rocket Launcher Build | -11 -10 -10 -10 -9 ------- Run | Yrd Mat Min Exi Min Slots Evolved . | . . . . . Power . | . . . . . Propulsion . | . . . . . Utility . | . . . . . Weapon . | . . . . . Parts Attached 17 | 6 4 4 . 3 Power 5 | 1 1 1 . 2 Engine 5 | 1 1 1 . 2 Core . | . . . . . Reactor . | . . . . . Propulsion 4 | 2 . 1 . 1 Treads 4 | 2 . 1 . 1 Leg . | . . . . . Wheel . | . . . . . Hover . | . . . . . Flight . | . . . . . Utility 3 | 1 2 . . . Device . | . . . . . Storage 2 | 1 1 . . . Processor 1 | . 1 . . . Hackware . | . . . . . Protection . | . . . . . Artifact . | . . . . . Weapon 5 | 2 1 2 . . Energy Gun 2 | 2 . . . . Energy Cannon . | . . . . . Ballistic Gun 1 | . . 1 . . Ballistic Cannon . | . . . . . Launcher 2 | . 1 1 . . Special Weapon . | . . . . . Impact Weapon . | . . . . . Slashing Weapon . | . . . . . Piercing Weapon . | . . . . . Special Melee Weapon . | . . . . . Unidentified Prototypes . | . . . . . Parts Lost 4 | . 1 3 . . Power 1 | . . 1 . . Propulsion 1 | . . 1 . . Utility . | . . . . . Weapon 2 | . 1 1 . . Highest Loss Streak 2 | . 1 2 . . To Critical Strikes . | . . . . . Average Slot Usage (%) 86 | . 87 64 100 100 Engine 10 | . 14 3 14 14 Treads 24 | . 28 18 28 28 Storage 14 | . 14 14 14 14 Processor 13 | . 13 14 14 14 Energy Gun 1 | . 6 . . . Ballistic Gun 6 | . . 1 14 14 Launcher 12 | . 9 12 14 14 Naked Turns . | . . . . . Heaviest Build 32 | 14 26 32 32 32 Greatest Support 40 | 40 40 40 40 40 Greatest Overweight (x) 1 | . . 1 . . Average Overweight (x) . | . . . . . Largest Inventory Capacity 15 | 8 15 15 15 15 Average Capacity 13 | 6 10 15 15 15 Most Carried 7 | 1 4 6 7 7 Average Carried 4 | . 3 4 6 4 Final Capacity 15 | 8 15 15 15 15 Final Carried 7 | 1 4 6 7 4 Class Distribution -------------------- 100% | Mutant Dominant Class ---------------- Mutant | -10/Materials Mutant | -10/Mines Mutant | -10/Exiles Mutant | -9/Mines Resources | -11 -10 -10 -10 -9 ----------- Run | Yrd Mat Min Exi Min Matter Collected 475 | 143 187 99 . 46 Remotely . | . . . . . Salvage Created 452 | . 230 127 . 95 Parts 31 | . 17 6 . 8 Haulers Intercepted . | . . . . . Recyclers Shooed . | . . . . . Parts Field Recycled . | . . . . . Retrieved Matter . | . . . . . Parts Self-Destructed . | . . . . . Prevented . | . . . . . Kills | -11 -10 -10 -10 -9 ------- Run | Yrd Mat Min Exi Min Combat Hostiles Destroyed 15 | . 4 8 . 3 Melee 1 | . . 1 . . Guns 3 | . 2 . . 1 AOE 10 | . 1 7 . 2 Classes Destroyed 7 | . 5 2 . . Builder 1 | . 1 . . . Tunneler 2 | . 1 . . 1 Operator 1 | . 1 . . . Watcher 2 | . 2 . . . Swarmer 3 | . . 3 . . Grunt 10 | . 4 3 . 3 Sentry 2 | . . 2 . . Best Kill Streak 3 | . 3 3 . 2 Combat Bots Only 3 | . 2 3 . 2 Max Kills in Single Turn 3 | . 2 3 . 1 Gunslinging . | . . . . . Exploded 3 | . 1 3 . 1 Melee 1 | . . 1 . . Uniques/NPCs Destroyed . | . . . . . Combat | -11 -10 -10 -10 -9 -------- Run | Yrd Mat Min Exi Min Hostile Shots Fired 90 | . 26 56 . 8 Missed 24 | . 8 13 . 3 Damage Taken 891 | . 335 425 . 131 Core 258 | . 74 127 . 57 Absorbed by Shields . | . . . . . Core Remaining (%) 100 | 100 . . . . Volleys Fired 36 | . 22 8 . 6 Largest 2 | . 2 1 . 2 Hottest 80 | . 80 33 . 53 Shots Fired 57 | . 37 8 . 12 Gun 36 | . 30 . . 6 Cannon . | . . . . . Launcher 21 | . 7 8 . 6 Special . | . . . . . Kinetic 6 | . . . . 6 Thermal . | . . . . . Explosive 21 | . 7 8 . 6 Electromagnetic 30 | . 30 . . . Robot Hit Streak 6 | . 6 3 . 3 Robot Miss Streak 4 | . 4 2 . 1 Penetration Max . | . . . . . Secondary Targets . | . . . . . Shots Hit Robots 34 | . 22 4 . 8 Core Hits 29 | . 12 12 . 5 Critical Kills . | . . . . . Critical Parts Destroyed . | . . . . . Critical Strikes . | . . . . . Melee Attacks . | . . . . . Impact . | . . . . . Slashing . | . . . . . Piercing . | . . . . . Sneak Attacks . | . . . . . Combat Hostiles . | . . . . . Follow-up Attacks . | . . . . . Damage Inflicted 1405 | . 605 476 . 324 Guns 284 | . 241 . . 43 Cannons . | . . . . . Explosions 1090 | . 363 446 . 281 Melee . | . . . . . Ramming 31 | . 1 30 . . Kinetic 43 | . . . . 43 Thermal 36 | . 36 . . . Explosive 1054 | . 327 446 . 281 Electromagnetic 241 | . 241 . . . Impact . | . . . . . Slashing . | . . . . . Piercing . | . . . . . Highest Corruption . | . . . . . Average Corruption . | . . . . . Corruption Purged . | . . . . . Corruption Blocked . | . . . . . Overload Shots . | . . . . . Overflow Damage 73 | . 73 . . . Projectiles . | . . . . . Explosions 73 | . 73 . . . Melee . | . . . . . Knockbacks . | . . . . . Impact . | . . . . . Kinetic . | . . . . . Secondary . | . . . . . Self-Inflicted Damage 225 | . 135 32 . 58 Shots 10 | . 5 3 . 2 Rammed 10 | . 1 9 . . Targets Rammed 11 | . 1 10 . . Kicked . | . . . . . Crushed 1 | . . 1 . . Highest Temperature 239 | . 239 15 . 53 Average Temperature 96 | . 116 9 . 24 Received Heat Transfer 243 | . 111 75 . 57 Siege Activations . | . . . . . Robots Corrupted 1 | . 1 . . . Combat Hostiles 1 | . 1 . . . Parts Fried 1 | . 1 . . . Impact Corruptions . | . . . . . Robots Melted . | . . . . . Combat Hostiles . | . . . . . Parts Melted . | . . . . . Heat Transferred 50 | . 50 . . . Parts Sabotaged . | . . . . . Parts Stolen . | . . . . . Parts Stripped . | . . . . . Power Chain Reactions 1 | . 1 . . . Alert | -11 -10 -10 -10 -9 ------- Run | Yrd Mat Min Exi Min Peak Influence 198 | . 198 187 . 118 Initial 14 | . . 14 . . Average 92 | . 123 84 . 77 Maximum Alert Level . | . . . . . Low Security (%) 100 | 100 100 100 . 100 Level 1 . | . . . . . Level 2 . | . . . . . Level 3 . | . . . . . Level 4 . | . . . . . Level 5 . | . . . . . High Security . | . . . . . Max Security . | . . . . . Squads Dispatched 2 | . 2 . . . Investigation 1 | . 1 . . . Extermination . | . . . . . Reinforcement 1 | . 1 . . . Assault . | . . . . . Garrison . | . . . . . Intercept . | . . . . . Searches Triggered . | . . . . . Construction Impeded . | . . . . . Haulers Reinforced . | . . . . . Active Scanning Responses . | . . . . . Cargo Convoy Interrupts . | . . . . . Stealth | -11 -10 -10 -10 -9 --------- Run | Yrd Mat Min Exi Min Distress Signals 1 | . . 1 . . Communications Jammed . | . . . . . Distress Signals . | . . . . . Times Spotted 21 | . 9 8 . 4 Peak Tracking Total 3 | . 3 3 . 2 Tactical Retreats . | . . . . . Traps | -11 -10 -10 -10 -9 ------- Run | Yrd Mat Min Exi Min Traps Triggered . | . . . . . Indirectly . | . . . . . Trap Hack Attempts . | . . . . . Triggered . | . . . . . Disarmed . | . . . . . Reprogrammed . | . . . . . Reused . | . . . . . Traps Extracted . | . . . . . Installed . | . . . . . Triggered . | . . . . . Machines | -11 -10 -10 -10 -9 ---------- Run | Yrd Mat Min Exi Min Machines Disabled 3 | . 1 1 . 1 Max in Single Turn 1 | . 1 1 . 1 Machines Repaired . | . . . . . Machines Dismantled . | . . . . . Machines Sabotaged . | . . . . . Overloaded Fab Kills . | . . . . . Hacking | -11 -10 -10 -10 -9 --------- Run | Yrd Mat Min Exi Min Machines Accessed 3 | . 2 . 1 . Terminals 2 | . 2 . . . Fabricators . | . . . . . Repair Stations . | . . . . . Recycling Units . | . . . . . Scanalyzers . | . . . . . Garrison Access . | . . . . . Total Hacks 8 | . 7 . 1 . Successful 6 | . 5 . 1 . Failed 2 | . 2 . . . Catastrophic . | . . . . . Database Lockouts . | . . . . . Manual 4 | . 3 . 1 . Terminals 7 | . 7 . . . Fabricators . | . . . . . Repair Stations . | . . . . . Recycling Units . | . . . . . Scanalyzers . | . . . . . Garrison Access . | . . . . . Terminal Hacks 3 | . 2 . 1 . Hauler Manifests 1 | . 1 . . . Registered Prototypes 1 | . 1 . . . Derelict Proto ID Bank 1 | . . . 1 . Fabricator Hacks . | . . . . . Repair Station Hacks . | . . . . . Recycling Unit Hacks . | . . . . . Scanalyzer . | . . . . . Garrison Access Hacks . | . . . . . Unauthorized Hacks 3 | . 3 . . . Terminals 3 | . 3 . . . Botnet 2 | . 2 . . . Operators 1 | . 1 . . . Fabricators . | . . . . . Repair Stations . | . . . . . Recycling Units . | . . . . . Scanalyzers . | . . . . . Garrison Access . | . . . . . Data Cores Recovered . | . . . . . Used . | . . . . . Hacking Detections 2 | . 2 . . . Full Trace Events 1 | . 1 . . . Feedback Events . | . . . . . Feedback Blocked . | . . . . . Robot Schematics Acquired . | . . . . . Robots Built . | . . . . . Authchips . | . . . . . Time . | . . . . . Total Robot Build Rating . | . . . . . Part Schematics Acquired . | . . . . . Parts Built . | . . . . . Authchips . | . . . . . Time . | . . . . . Total Part Build Rating . | . . . . . Parts Repaired . | . . . . . Time . | . . . . . Parts Recycled . | . . . . . Recycled Matter . | . . . . . Retrieved Matter . | . . . . . Retrieved Components . | . . . . . Parts Scanalyzed . | . . . . . Part Schematics Acquired . | . . . . . Parts Damaged . | . . . . . Bothacking | -11 -10 -10 -10 -9 ------------ Run | Yrd Mat Min Exi Min Used RIF Installer . | . . . . . Robots Hacked . | . . . . . Non-combat . | . . . . . Combat . | . . . . . Robot Hacks Applied . | . . . . . Relay Couplers Released . | . . . . . Fabnet Peak Effective % . | . . . . . Robots Rewired . | . . . . . Allies Hacked . | . . . . . Hacks Repelled . | . . . . . Allies | -11 -10 -10 -10 -9 -------- Run | Yrd Mat Min Exi Min Total Allies . | . . . . . Largest Group . | . . . . . Highest-Rated Group . | . . . . . Highest-Rated Ally . | . . . . . Total Orders . | . . . . . Ally Attacks . | . . . . . Total Damage . | . . . . . Kills . | . . . . . Allies Corrupted . | . . . . . Allies Melted . | . . . . . Intel | -11 -10 -10 -10 -9 ------- Run | Yrd Mat Min Exi Min Robot Analysis Total . | . . . . . Derelict Logs Recovered 1 | . . 1 . . Drone Launches . | . . . . . Drone Recoveries . | . . . . . Exploration | -11 -10 -10 -10 -9 ------------- Run | Yrd Mat Min Exi Min Turns Passed 2223 | 72 452 684 873 142 Spaces Moved 1209 | 41 240 308 544 76 Core 2 | 2 . . . . Treads 1207 | 39 240 308 544 76 Legs . | . . . . . Wheels . | . . . . . Hover . | . . . . . Flight . | . . . . . Fastest Speed 50 | 50 160 160 160 160 Average Speed 172 | 154 160 208 160 160 Slowest Speed 240 | 160 160 240 160 160 Overloaded Moves . | . . . . . Propulsion Burnouts . | . . . . . Robots Hopped . | . . . . . Cave-ins Triggered . | . . . . . Exploration Rate (%) 44 | 4 55 54 92 19 Regions Visited 4 Branch Regions 3 Pre-discovered Areas 2 | . . 2 . . Known Exits Taken 3 | . 1 1 1 . Unknown Exits Taken 1 | 1 . . . . Scrap Searched 1 | . . 1 . . Spaces Dug . | . . . . . Terrain Destroyed 163 | . 52 57 . 54 Melee . | . . . . . Projectile . | . . . . . AOE 163 | . 52 57 . 54 Terrain Rammed . | . . . . . Walls Destroyed . | . . . . . Machines Disabled . | . . . . . Actions | -11 -10 -10 -10 -9 --------- Run | Yrd Mat Min Exi Min Total 1285 | 47 270 332 547 89 Wait 3 | . . 1 2 . Move 1205 | 40 239 307 543 76 Hop . | . . . . . Pick Up 6 | 1 2 2 1 . Fast Attach 11 | 6 1 4 . . Attach 2 | . 1 . . 1 Detach 2 | . 1 . . 1 Swap 4 | . 2 . . 2 Drop 4 | . 1 . . 3 Fire 36 | . 22 8 . 6 Melee . | . . . . . Ram . | . . . . . Kick . | . . . . . Crush 11 | . 1 10 . . Escape Stasis . | . . . . . Rewire 1 | . . . 1 . Trap . | . . . . . Miscellaneous . | . . . . . Route ------- -11/Scrapyard -10/Materials (discovered 2 exits: *Mat / *Min) -10/Mines -10/Exiles -9/Mines History --------- Turn | Location | Event 29 | -11/Scrapyard | Discovered new exit (range 15) 73 | -11/Scrapyard | Entered Materials 287 | -10/Materials | Discovered new exit (range 15) 306 | -10/Materials | Build established: Mutant 317 | -10/Materials | Identified exit to Materials 493 | -10/Materials | Discovered new exit (range 12) 523 | -10/Materials | Identified exit to Mines 525 | -10/Materials | Entered Mines 539 | -10/Mines | Learned location of Storage (-9) 543 | -10/Mines | Learned location of Zion (-7) 664 | -10/Mines | Received a Rocket Launcher from a helpful Derelict 677 | -10/Mines | Core integrity fell below 50% 1127 | -10/Mines | Core integrity fell below 20% 1172 | -10/Mines | Joined a pair of Derelicts in attacking an 0b10 outpost 1201 | -10/Mines | Deemed a non-threat by the Exiles lab entrance 1202 | -10/Mines | Discovered new exit (range 5) 1207 | -10/Mines | Identified exit to Exiles 1209 | -10/Mines | Entered Exiles 1249 | -10/Exiles | Met 8R-AWN 1276 | -10/Exiles | Met EX-HEX 1335 | -10/Exiles | Met EX-BIN 1358 | -10/Exiles | Aligned with FarCom system 1359 | -10/Exiles | Given EX-Vault access code 1399 | -10/Exiles | Opened EX-Vault 1415 | -10/Exiles | Found Cloak of Protection 1446 | -10/Exiles | Warned to stay clear of 0b10 Research branches 1491 | -10/Exiles | Met EX-DEC 1645 | -10/Exiles | Visited The Gauntlet 2065 | -10/Exiles | Discovered new exit (range 14) 2081 | -10/Exiles | Identified exit to Mines 2082 | -10/Exiles | Left Exiles lab with Cloak of Protection 2082 | -10/Exiles | Entered Mines 2224 | -9/Mines | Destroyed self with Rocket Launcher Last Messages --------------- 02065_ EXIT=FOUND 02081_ EXIT=IDENTIFIED: MINES LOCATION=MINES GOAL=ESCAPE 02082_ Receiving FarCom transmissions... 02084_ Core Extractor disabled. 02084_ G-47 Trooper destroyed. 02084_ Core Extractor disabled. 02087_ G-34 Mercenary destroyed. 02094_ Dropped Ion Engine. 02095_ Dropped Imp. Ion Engine. 02095_ Dropped Lgt. Treads. 02100_ Acquired 40 matter. 02110_ Acquired 6 matter. 02216_ C-30 ARC bursts open, deploying its payload. 02216_ G-47 Trooper unfolds itself. 02216_ G-34 Mercenary unfolds itself. 02221_ G-34 Mercenary destroyed. 02223_ Critical hit (Burn: +37). 02224_ T-07 Excavator destroyed. Map ----- +----------------------------------------------------+ | ?????????????????????????????????????????????????? | | ?????????????????????????????????????????????????? | | ?????????????????????????????????????????????????? | | ?????????????????????????????????????????????????? | | ?????????????????????????????????????????????????? | | ?????????????????????????????????????????????????? | | ?????????????????????????????????????????????????? | | ?????????????????????????????????????????????????? | | ?????????????????????????????????????????????????? | | ?????????????????????????????????????????????????? | | ?????????????????????????????????????????????????? | | ?????????????????????????????????????????????????? | | ?????????????????????????????????????????????????? | | ????????????????? ????###???????????????????????? | | ????????????????? ??## ###????????????????????? | | ?????????????????? ### #????????????????????? | | ??????????????????? #????????????????????? | | ??????????????????? #????????????????????? | | ???????????????????? g ????????????????????? | | ????????????????????? #????????????????????? | | ?????????????????????# %= ?????????????????????? | | ?????????????????????? ???#######???????????? | | ??????????????????????# ! ???## ########????? | | ??????????????????????# %| ???# #????? | | ??????????????????????# #???## ##### #????? | | ???????????????????###?# @##???### ##???# #????? | | ??????????????????## ## ##????# #????# #????? | | ??????????????????# ####?# ##????# #???## | | ??????????????????## ### #?????# #??? | | ???????????????????#### #?????# #???# | | ??????????????????????## ## ##?????# #???# | | ??????????????????????## """ ### #??????# ##### | | ??????????????????????# """ ##?# #??????# | | ??????????????????????# """ ##??# #??????###### | | ??????????????????????## ##### #??????## | | ???????????????????????# #??????# ! = | | ???????????????????????# ######??????# | | ???????????????????????# #???????????# * = | | ???????????????????????## #???????????## | | ????????????????????????# ##????????????## | | ???????????????????????# ##??????????????# ** | | ??????????????????????# ##???????????????# | | ??????????????????????# #????????????????# | | ??????????????????????## ##????????????????###### | | ???????????????????????###???????????????????????? | | ?????????????????????????????????????????????????? | | ?????????????????????????????????????????????????? | | | | | | | +----------------------------------------------------+ Best States ------------- Heat Dissipation 25 Energy Generation 12 Energy Capacity 265 Matter Stores 300 Matter Capacity 300 Sight Range 16 Terrain Scan Density 10 Evasion (%) 40 Recoil Reduction 2 Item Schematics ----------------- None Robot Schematics ------------------ None Fabricated ------------ Nothing Alien Tech Used ----------------- None Achievements -------------- None Challenges ------------ None Game ------ Seed DeliveryMyomerImmobilizer Manual? 0 Play Time 00:13:14 Cumulative 32.6 hours Start 2024.04.08 @ 23:16:59 End 2024.04.08 @ 23:31:19 Sessions 1 Manual Loads 0 Difficulty Rogue Special Mode None Game No. 90 Rogue 88 Adventurer 2 Explorer 0 Win Type - Total 0 Types 0/0/0/0/0/0/0/0/0 Lore% 26 Gallery% 32 Achievement% 25 Wizard Run 0 Options --------- Layout 0 ASCII 0 Keyboard 1 Movement Numpad Keybinds 0 Fullscreen 2 Font 18/SmallcapsGlow Map View 76x50 Zoom Use 0% Tactical HUD 1 Map Filters NONE Filters NONE Steam 1 RUN: 6fa76455-a5b4-4425-b224-d67c7eea128d